bitfinex-derivatives/quotes_SOLF0:USTF0_20241021
["timestamp","ask_amount","ask_price","bid_price","bid_amount"]
[1729540839626,8.8876,167.4,167.34,2.9885]
[1729540839928,8.8876,167.4,167.35,1.09824831]
[1729540840130,8.8876,167.4,167.36,1.09824831]
[1729540840424,8.8876,167.4,167.34,2.9885]
[1729540840626,8.8876,167.4,167.35,1.09826978]
[1729540840819,8.8876,167.4,167.36,1.09826978]
[1729540841126,8.8876,167.4,167.34,2.9885]
[1729540841317,8.8876,167.4,167.35,1.09829087]
[1729540841518,5.9,167.4,167.36,1.09829087]
[1729540841724,5.9,167.4,167.3,8.61765701]
[1729540841925,5.9,167.4,167.31,2.69610351]
[1729540842122,5.9,167.4,167.32,1.09836371]
[1729540842321,2.9883,167.37,167.33,1.09836371]
[1729540842523,2.9883,167.37,167.29,2.71765701]
[1729540842728,5.9,167.4,167.3,1.0984495]
[1729540842929,2.9878,167.39,167.34,2.9886]
[1729540843128,2.9878,167.39,167.35,1.0984495]
[1729540843322,2.9878,167.39,167.34,2.9886]
[1729540843521,8.8877,167.4,167.35,1.09835931]
[1729540843723,8.8877,167.4,167.31,2.71765701]
[1729540843922,5.9,167.4,167.32,1.09832563]
[1729540844127,5.9,167.4,167.33,1.09832608]
[1729540844327,5.9,167.4,167.34,1.09832608]
[1729540844527,5.9,167.4,167.3,2.71765701]
[1729540844828,2.9878,167.39,167.34,2.9885]
[1729540845029,5.9,167.4,167.35,1.09841029]
[1729540845223,5.9,167.4,167.3,2.71765701]
[1729540845425,5.9,167.4,167.31,1.09837561]
[1729540845633,2.988,167.38,167.33,2.9888]
[1729540845926,5.9,167.4,167.34,1.09837561]
[1729540846230,5.9,167.4,167.3,2.71765701]
[1729540846436,2.9879,167.39,167.33,2.9887]
[1729540846738,2.9879,167.39,167.34,1.0983664]
[1729540847030,2.9879,167.38,167.33,2.9887]
[1729540847329,2.9879,167.38,167.34,1.09839181]
[1729540847535,2.9879,167.38,167.33,2.9887]
[1729540847723,2.9879,167.38,167.34,1.09836471]
[1729540847923,2.9879,167.38,167.33,2.9887]
[1729540848123,2.9879,167.38,167.34,1.09836471]
[1729540848330,2.9879,167.38,167.33,2.9887]
[1729540848630,5.9,167.4,167.34,1.09836471]
[1729540848835,2.9886,167.35,167.29,2.71765701]
[1729540849137,2.9886,167.35,167.3,1.09849479]
[1729540849338,2.9886,167.35,167.31,1.09849479]
[1729540849536,2.9886,167.35,167.32,1.09849479]
[1729540849834,5.9,167.4,167.28,2.71765701]
[1729540850034,5.9,167.4,167.29,1.09851178]
[1729540850227,5.9,167.4,167.3,1.09851178]
[1729540850529,5.9,167.4,167.31,1.09851178]
[1729540850730,5.9,167.4,167.3,2.9893]
[1729540851026,5.9,167.4,167.28,2.71765701]
[1729540851027,2.9889,167.33,167.31,1.0985422]
[1729540851234,5.58,167.34,167.25,2.71765701]
[1729540851422,5.58,167.34,167.26,1.09865095]
[1729540851736,2.724,167.33,167.27,1.09865095]
[1729540851947,4.0741,167.33,167.23,2.71765701]
[1729540852230,4.0741,167.33,167.24,1.0987428]
[1729540852424,4.0741,167.33,167.25,1.0987428]
[1729540852628,4.0741,167.33,167.26,1.0987428]
[1729540852827,4.0741,167.33,167.22,5.58]
[1729540853037,2.9897,167.29,167.25,2.9901]
[1729540853237,5.58,167.29,167.21,2.71765701]
[1729540853540,5.58,167.29,167.22,1.09882253]
[1729540853835,5.58,167.29,167.23,1.09882253]
[1729540854035,5.58,167.29,167.24,1.09882253]
[1729540854236,5.58,167.29,167.25,1.09882253]
[1729540854534,2.9898,167.28,167.2,2.71765701]
[1729540854735,2.9898,167.28,167.21,1.09880563]
[1729540854929,2.9898,167.28,167.22,1.09880563]
[1729540855130,2.9898,167.28,167.23,4.08930563]
[1729540855329,5.58,167.29,167.24,1.09880563]
[1729540855525,2.99,167.27,167.22,2.9907]
[1729540855731,2.99,167.27,167.23,1.0988957]
[1729540855940,2.9901,167.26,167.23,1.0988957]
[1729540856133,5.58,167.29,167.16,1.2842]
[1729540856134,5.58,167.29,167.16,4.00185701]
[1729540856435,5.58,167.29,167.2,2.991]
[1729540856648,2.9902,167.26,167.21,1.09895703]
[1729540856828,5.58,167.29,167.22,1.0990115]
[1729540857029,5.58,167.29,167.18,2.9914]
[1729540857225,5.58,167.29,167.15,5.58]
[1729540857226,5.58,167.29,167.19,1.09916124]
[1729540857438,5.58,167.29,167.2,1.09916124]
[1729540857636,2.9905,167.24,167.2,1.09916124]
[1729540858640,2.9905,167.24,167.19,2.9913]
[1729540859731,2.9905,167.24,167.17,2.9917]
[1729540859935,2.9905,167.24,167.18,1.09914304]
[1729540860136,2.9905,167.24,167.19,1.09914304]
[1729540860336,2.9905,167.24,167.19,2.9912]
[1729540860835,2.9907,167.23,167.19,2.9912]
[1729540861037,5.58,167.24,167.13,70.12]
[1729540861226,8.3083,167.23,167.14,1.09922932]
[1729540861537,5.58,167.24,167.17,2.9916]
[1729540861741,5.58,167.25,167.18,1.09922932]
[1729540861942,2.9905,167.24,167.13,5.58]
[1729540862138,2.9905,167.24,167.18,2.9914]
[1729540863034,2.9906,167.23,167.18,2.9914]
[1729540863939,2.9913,167.2,167.14,2.9921]
[1729540864146,2.9913,167.2,167.15,1.09933338]
[1729540864335,2.9913,167.2,167.11,6.9255]
[1729540864528,2.991,167.21,167.15,2.992]
[1729540866642,2.9912,167.2,167.15,2.992]
[1729540867233,4.3532,167.24,167.19,2.9912]
[1729540867439,5.58,167.24,167.11,6.9255]
[1729540867643,5.58,167.24,167.13,1.09932229]
[1729540867837,5.58,167.24,167.13,2.19863972]
[1729540868032,2.9907,167.23,167.17,2.9915]
[1729540868235,2.9907,167.23,167.13,1.09932229]
[1729540868236,5.58,167.24,167.13,1.09932229]
[1729540868442,5.58,167.24,167.14,1.09933116]
[1729540868740,2.9907,167.23,167.17,2.9916]
[1729540869551,2.9908,167.22,167.17,2.9916]
[1729540869845,5.58,167.24,167.13,1.09932229]
[1729540870036,2.9908,167.22,167.16,2.9917]
[1729540870233,5.58,167.24,167.16,2.9917]
[1729540870741,2.9908,167.22,167.16,2.9917]
[1729540871135,2.9908,167.22,167.13,1.09932229]
[1729540871136,5.58,167.24,167.13,1.09932229]
[1729540871332,8.5705,167.24,167.13,1.09932229]
[1729540871646,8.3083,167.28,167.14,1.09930312]
[1729540872143,8.3083,167.28,167.21,2.9908]
[1729540872348,11.298,167.28,167.18,5.58]
[1729540873452,2.9894,167.3,167.24,2.9903]
[1729540873751,2.9894,167.3,167.19,2.6476]
[1729540873950,6.8948,167.31,167.19,2.6476]
[1729540874554,6.8948,167.31,167.25,2.9901]
[1729540874555,9.8841,167.31,167.25,2.9901]
[1729540874750,6.8948,167.31,167.25,2.9901]
[1729540875152,2.7836,167.34,167.23,5.58]
[1729540875747,17.94,167.4,167.23,5.58]
[1729540875748,5.58,167.4,167.24,1.09869722]
[1729540876447,5.58,167.4,167.25,5.58]
[1729540876448,2.9887,167.34,167.25,5.58]
[1729540877244,2.9884,167.36,167.25,5.58]
[1729540877455,5.58,167.38,167.25,5.58]
[1729540877947,2.9882,167.37,167.25,5.58]
[1729540878540,2.9882,167.37,167.3,2.9892]
[1729540879552,2.9882,167.37,167.31,2.9891]
[1729540880657,2.9882,167.37,167.25,5.58]
[1729540880848,2.9882,167.37,167.32,2.989]
[1729540881952,5.28,167.38,167.25,5.58]
[1729540882155,1.3524,167.36,167.25,5.28]
[1729540882359,1.3524,167.36,167.22,5.28]
[1729540883160,2.9894,167.3,167.26,2.9899]
[1729540883455,1.3524,167.36,167.22,5.28]
[1729540883456,5.28,167.32,167.22,5.28]
[1729540883653,5.28,167.31,167.22,5.28]
[1729540884444,2.9895,167.3,167.25,2.9901]
[1729540884858,2.9895,167.3,167.22,5.28]
[1729540886253,5.28,167.31,167.19,3.9458]
[1729540886556,2.99,167.27,167.19,9.2258]
[1729540886758,2.99,167.27,167.21,2.9909]
[1729540887057,2.9899,167.28,167.19,9.2258]
[1729540887358,5.28,167.31,167.19,9.2258]
[1729540887553,2.9896,167.29,167.19,9.2258]
[1729540887747,5.28,167.31,167.19,9.2258]
[1729540889453,2.9898,167.28,167.22,2.9907]
[1729540889855,5.28,167.31,167.19,9.2258]
[1729540890050,2.9896,167.29,167.19,9.2258]
[1729540890747,5.28,167.31,167.19,9.2258]
[1729540890748,2.9898,167.28,167.22,2.9907]
[1729540891557,5.28,167.31,167.19,9.2258]
[1729540891754,2.9899,167.27,167.21,2.9909]
[1729540892147,5.28,167.31,167.19,9.2258]
[1729540892461,5.28,167.31,167.19,2.6476]
[1729540892954,2.9902,167.25,167.19,5.6388]
[1729540894265,2.99,167.27,167.21,2.9909]
[1729540894561,5.28,167.31,167.19,2.6476]
[1729540894971,2.9902,167.25,167.19,2.6476]
[1729540895156,2.9902,167.25,167.2,2.9911]
[1729540896058,2.9901,167.26,167.21,2.9909]
[1729540896556,5.28,167.31,167.19,2.6476]
[1729540898060,2.9899,167.27,167.19,2.6476]
[1729540898462,2.9899,167.27,167.21,2.9908]
[1729540899359,2.9903,167.25,167.2,2.9911]
[1729540901365,2.9901,167.26,167.21,2.9909]
[1729540904471,5.28,167.31,167.19,2.6476]
[1729540904774,5.28,167.31,167.2,2.9911]
[1729540904969,5.28,167.31,167.19,6.6082]
[1729540905568,2.9903,167.25,167.21,2.9909]
[1729540906265,5.28,167.31,167.19,6.6082]
[1729540906466,5.28,167.31,167.2,2.991]
[1729540906666,5.28,167.31,167.19,6.6082]
[1729540907259,2.9903,167.25,167.21,2.9908]
[1729540907459,5.28,167.31,167.14,1.4035]
[1729540907460,3.03187867,167.24,167.14,1.4035]
[1729540907763,23.9186,167.31,167.16,2.9917]
[1729540907764,2.9912,167.2,167.16,2.9917]
[1729540907958,7.92871286,167.23,167.11,2.7616]
[1729540908169,4.0387,167.22,167.12,5.0]
[1729540908471,2.9915,167.18,167.14,2.9921]
[1729540908866,4.0387,167.22,167.12,5.0]
[1729540909074,2.9913,167.19,167.15,2.9919]
[1729540910767,2.9913,167.19,167.14,2.9921]
[1729540911273,2.9916,167.18,167.12,5.0]
[1729540911465,2.9916,167.18,167.14,2.9922]
[1729540912767,5.0,167.19,167.05,5.0]
[1729540912966,5.0,167.19,167.04,7.7009]
[1729540913770,2.9927,167.12,167.07,2.9934]
[1729540914162,5.0,167.14,167.04,7.7009]
[1729540914367,2.9925,167.13,167.08,2.9932]
[1729540915678,7.9923,167.14,167.09,2.9931]
[1729540915976,7.9923,167.14,167.04,7.7009]
[1729540916367,5.0,167.14,166.93,226.0]
[1729540916564,5.0,167.14,167.0,1.4005]
[1729540916565,2.6845,167.13,167.0,1.4005]
[1729540916770,4.089,167.13,167.01,1.09988596]
[1729540917071,2.9928,167.11,167.05,2.9937]
[1729540917270,5.0,167.12,167.01,5.0]
[1729540917570,2.9927,167.12,167.01,5.0]
[1729540917771,4.089,167.13,167.02,1.09997051]
[1729540917971,5.0,167.12,167.02,1.09997051]
[1729540918177,5.0,167.12,167.06,2.9935]
[1729540919269,5.0,167.12,167.07,2.9934]
[1729540920081,7.9926,167.12,167.06,2.9936]
[1729540921178,2.9929,167.11,167.04,2.9938]
[1729540921377,5.0,167.12,167.04,2.9938]
[1729540922086,2.993,167.1,167.05,2.9938]
[1729540922487,5.0,167.12,167.05,2.9938]
[1729540923084,5.0,167.12,167.01,5.0]
[1729540923284,5.0,167.12,167.02,1.09998955]
[1729540923477,2.993,167.1,167.05,2.9938]
[1729540924681,5.0,167.11,167.06,2.9935]
[1729540925081,5.0,167.11,167.01,5.0]
[1729540925288,5.0,167.11,167.02,1.09999252]
[1729540925580,5.0,167.11,167.06,2.9935]
[1729540926382,5.0,167.11,167.08,2.9933]
[1729540926980,5.0,167.13,167.01,5.0]
[1729540927186,5.0,167.13,167.02,1.09991587]
[1729540927378,3.03866182,167.14,167.02,1.09991587]
[1729540927572,1.3697,167.17,167.02,1.09991587]
[1729540927777,1.3226,167.18,167.02,1.09991587]
[1729540927972,5.0,167.21,167.02,1.09991587]
[1729540928171,10.98932559,167.21,167.02,1.09991587]
[1729540928881,10.98932559,167.21,167.15,2.9919]
[1729540929985,2.9913,167.19,167.14,2.9922]
[1729540930776,2.9912,167.2,167.14,2.9922]
[1729540932182,2.9912,167.2,167.15,2.992]
[1729540932588,7.99832559,167.21,167.12,5.0]
[1729540932791,10.98932559,167.21,167.16,2.9917]
[1729540933091,2.6921,167.28,167.12,5.0]
[1729540933401,2.9905,167.24,167.12,5.0]
[1729540933590,2.6921,167.28,167.13,1.3557]
[1729540933784,2.6921,167.28,167.13,2.649]
[1729540933980,2.6921,167.28,167.14,1.0992152]
[1729540934287,5.0,167.32,167.15,1.09915219]
[1729540934493,8.00012132,167.32,167.16,6.3384]
[1729540934685,3.00012132,167.32,167.16,6.3384]
[1729540934885,5.0,167.33,167.17,1.09915219]
[1729540935186,7.93490129,167.33,167.16,6.3384]
[1729540935384,2.9899,167.28,167.21,2.9908]
[1729540935589,5.0,167.29,167.21,2.9908]
[1729540935787,2.6812,167.28,167.16,6.3384]
[1729540937589,2.99,167.27,167.2,2.991]
[1729540940194,2.9901,167.26,167.2,2.991]
[1729540940991,4.8,167.27,167.2,2.991]
[1729540941194,2.9901,167.26,167.2,2.991]
[1729540941787,2.9903,167.25,167.2,2.991]
[1729540941989,2.97476204,167.24,167.16,2.9918]
[1729540942282,2.97476204,167.24,167.13,2.649]
[1729540942283,4.8,167.23,167.13,4.8]
[1729540942687,7.8082569,167.23,167.13,4.8]
[1729540942881,7.8082569,167.23,167.11,1.3429]
[1729540942882,2.9916,167.18,167.11,1.3429]
[1729540943089,4.8,167.19,167.1,4.8]
[1729540943697,2.9917,167.17,167.12,2.9925]
[1729540943896,4.8,167.19,167.08,69.42]
[1729540944088,2.705,167.18,167.08,69.42]
[1729540944501,2.705,167.18,167.07,4.8]
[1729540944691,1.4153,167.17,167.07,4.8]
[1729540945000,2.9924,167.13,167.08,2.9932]
[1729540945787,2.9923,167.14,167.09,2.9931]
[1729540947994,2.9928,167.11,167.07,2.9934]
[1729540948196,4.8,167.11,167.01,4.8]
[1729540948807,2.9931,167.1,167.0,1.3297]
[1729540948997,2.9931,167.1,167.0,6.1297]
[1729540949198,2.9931,167.1,167.03,2.9942]
[1729540949398,2.9931,167.1,167.0,6.1297]
[1729540950508,2.9931,167.1,167.04,2.9939]
[1729540951408,4.8,167.11,166.96,4.8]
[1729540951601,4.0226,167.09,166.96,4.8]
[1729540952203,4.0226,167.09,166.82,67.33765701]
[1729540952400,4.0226,167.09,166.86,8.6537]
[1729540952600,4.0226,167.09,166.87,1.10040348]
[1729540952800,4.0226,167.09,166.96,2.9953]
[1729540953209,2.9945,167.02,166.96,2.9953]
[1729540953416,4.8,167.01,166.96,2.9953]
[1729540953903,4.8,167.01,166.92,4.8]
[1729540955615,4.8,167.01,166.93,2.39237367]
[1729540955805,4.0226,167.09,166.93,4.0163]
[1729540956006,4.0226,167.09,166.94,1.10049364]
[1729540956201,8.8226,167.09,166.94,1.10049364]
[1729540956402,8.8226,167.09,167.05,2.9937]
[1729540956403,4.8,167.09,167.05,2.9937]
[1729540956900,4.8,167.09,167.0,4.8]
[1729540957099,4.8,167.09,167.04,2.9939]
[1729540957807,2.9935,167.07,167.02,2.9942]
[1729540958205,2.9935,167.07,167.0,4.8]
[1729540958402,2.9935,167.07,167.01,2.9944]
[1729540958809,4.8,167.09,167.01,2.9944]
[1729540959005,2.9937,167.06,167.01,2.9944]
[1729540959710,2.9934,167.08,167.02,2.9942]
[1729540959911,2.9934,167.08,166.97,4.8]
[1729540960112,2.9934,167.08,166.98,1.10027275]
[1729540961112,2.9934,167.08,167.02,2.9942]
[1729540961500,4.8,167.09,166.97,4.8]
[1729540961501,7.7932,167.09,166.97,4.8]
[1729540961707,4.8,167.09,166.98,1.10024314]
[1729540962007,4.8,167.09,166.97,4.8]
[1729540962213,2.993,167.1,166.98,1.10024284]
[1729540962412,7.793,167.1,167.05,2.9937]
[1729540965609,7.793,167.1,167.01,4.8]
[1729540965815,7.793,167.1,167.06,2.9936]
[1729540966819,4.8,167.1,167.08,2.9932]
[1729540967114,4.0118,167.15,167.05,4.8]
[1729540967323,4.8,167.14,167.05,4.8]
[1729540967512,4.8,167.14,167.11,2.9926]
[1729540967713,7.86149521,167.14,167.05,4.8]
[1729540967922,7.86149521,167.14,167.02,6.0833]
[1729540968421,7.86149521,167.14,166.99,6.0619]
[1729540969123,2.9934,167.08,166.99,6.0619]
[1729540969323,7.7534,167.08,166.99,6.0619]
[1729540969526,7.7534,167.08,167.03,2.9941]
[1729540969527,2.9935,167.07,167.03,2.9941]
[1729540971729,4.76,167.08,167.04,2.994]
[1729540971925,4.76,167.08,166.99,6.0619]
[1729540972114,3.06149521,167.14,166.99,6.0619]
[1729540972115,4.76,167.09,166.99,6.0619]
[1729540972621,2.9934,167.08,167.03,2.9941]
[1729540973013,2.9934,167.08,166.99,6.0619]
[1729540973223,2.9934,167.08,167.04,2.994]
[1729540974119,47.006,167.0,166.99,6.0619]
[1729540974819,47.006,167.0,166.99,9.0568]
[1729540979525,47.006,167.0,166.99,7.7549]
[1729540982927,47.006,167.0,166.99,2.9949]
[1729540985228,47.006,167.0,166.95,64.66]
[1729540985436,47.006,167.0,166.95,4.76]
[1729540986027,47.006,167.0,166.97,2.9951]
[1729540986234,47.006,167.0,166.92,1.4183]
[1729540986434,47.006,167.0,166.93,4.76]
[1729540986735,47.006,167.0,166.96,2.9953]
[1729540987938,47.006,167.0,166.93,4.76]
[1729540988124,47.006,167.0,166.99,2.9949]
[1729540988726,44.8766,167.0,166.99,2.9949]
[1729540997244,44.8766,167.0,166.93,4.68]
[1729540997739,44.8766,167.0,166.99,2.9949]
[1729541001033,44.8766,167.0,166.93,4.68]
[1729541001446,44.8766,167.0,166.99,2.9949]
[1729541006048,4.1019,167.08,166.99,4.68]
[1729541006754,4.1019,167.08,167.04,2.9938]
[1729541007644,1.3904,167.08,167.06,2.9936]
[1729541007844,1.3904,167.08,167.03,4.68]
[1729541008053,1.3266,167.14,167.03,4.68]
[1729541008237,6.0457,167.13,167.03,4.68]
[1729541008448,1.3657,167.13,167.03,4.68]
[1729541009155,1.3657,167.13,167.09,2.993]
[1729541010853,4.3581,167.13,167.08,4.68]
[1729541013651,1.3657,167.13,167.0,2.97437462]
[1729541013850,1.3657,167.13,167.01,4.68]
[1729541014243,1.3657,167.13,167.04,2.9939]
[1729541014244,2.9927,167.12,167.04,2.9939]
[1729541014454,2.9927,167.12,167.01,4.68]
[1729541015746,2.9928,167.11,167.05,2.9937]
[1729541017358,2.9928,167.11,167.06,2.9936]
[1729541022457,1.3657,167.13,167.03,4.68]
[1729541022658,2.9926,167.12,167.07,2.9934]
[1729541024753,7.6726,167.12,167.07,2.9934]
[1729541024953,7.6726,167.12,167.03,4.68]
[1729541025155,7.6726,167.12,166.98,64.66]
[1729541025156,2.9935,167.07,166.98,64.66]
[1729541025460,4.68,167.11,166.99,4.68]
[1729541025858,4.68,167.11,166.99,10.6697]
[1729541026060,4.68,167.11,167.06,2.9935]
[1729541026464,7.6728,167.11,167.06,2.9935]
[1729541027366,7.6728,167.11,167.07,2.9934]
[1729541028763,4.68,167.11,167.03,4.68]
[1729541029264,4.3582,167.13,167.06,2.9936]
[1729541029453,4.3582,167.13,167.03,4.68]
[1729541029658,1.3657,167.13,167.03,4.68]
[1729541029966,1.3657,167.13,167.09,2.993]
[1729541031159,1.3657,167.13,167.03,4.68]
[1729541031364,1.3657,167.13,167.12,2.9926]
[1729541032872,1.3707,167.15,167.14,2.9922]
[1729541033165,7.60667067,167.18,167.07,4.68]
[1729541033373,4.68,167.18,167.07,4.68]
[1729541033672,2.9921,167.15,167.12,2.9925]
[1729541033967,2.9921,167.15,167.07,4.68]
[1729541034269,2.9921,167.15,167.13,2.9923]
[1729541034663,2.9919,167.16,167.13,2.9923]
[1729541038664,7.74092757,167.18,167.07,4.68]
[1729541039271,2.9922,167.15,167.07,4.68]
[1729541039477,2.9922,167.15,167.12,2.9925]
[1729541040364,2.9922,167.15,167.07,4.68]
[1729541040365,2.9922,167.15,167.09,2.993]
[1729541040673,2.9922,167.15,167.07,4.68]
[1729541040874,2.9922,167.15,167.12,2.9924]
[1729541041176,2.9922,167.15,167.07,4.68]
[1729541041567,2.9922,167.15,167.12,2.9925]
[1729541044272,2.9919,167.16,167.1,2.9929]
[1729541044476,2.9919,167.16,167.07,4.68]
[1729541044773,7.74092757,167.18,167.1,2.9929]
[1729541044774,2.9922,167.14,167.1,2.9929]
[1729541044969,2.9922,167.14,167.02,4.68]
[1729541044970,4.68,167.14,167.02,4.68]
[1729541045169,4.0341,167.13,167.02,4.68]
[1729541045369,2.993,167.1,167.02,4.68]
[1729541046073,2.993,167.1,167.06,2.9936]
[1729541046682,2.993,167.1,167.05,2.9937]
[1729541047576,4.0341,167.13,167.01,2.6702]
[1729541047771,4.0341,167.13,167.04,2.9939]
[1729541048168,2.9932,167.09,167.04,2.9939]
[1729541049083,2.9932,167.09,167.02,4.68]
[1729541049382,4.0341,167.13,167.02,4.68]
[1729541049586,26.98392757,167.18,167.02,4.68]
[1729541049587,3.06092757,167.18,167.02,4.68]
[1729541049790,2.9921,167.15,167.1,2.9928]
[1729541049987,2.9921,167.15,167.02,4.68]
[1729541049988,2.9921,167.15,167.07,4.68]
[1729541050389,2.9921,167.15,167.09,2.9929]
[1729541050685,2.9922,167.14,167.07,4.68]
[1729541051278,2.9922,167.14,167.09,2.9931]
[1729541051785,4.68,167.16,167.07,4.68]
[1729541052085,4.68,167.16,167.07,2.9934]
[1729541052086,2.9926,167.12,167.07,2.9934]
[1729541055091,2.9924,167.13,167.08,2.9932]
[1729541055278,1.3327,167.15,167.04,4.68]
[1729541055480,4.68,167.16,167.04,4.68]
[1729541055679,2.9922,167.14,167.09,2.993]
[1729541056488,2.9922,167.14,167.1,2.9929]
[1729541057491,2.9921,167.15,167.1,2.9929]
[1729541058087,4.1331,167.21,167.08,4.68]
[1729541058290,1.3849,167.21,167.09,4.1461]
[1729541058491,1.3849,167.21,167.1,2.95607485]
[1729541058682,2.9913,167.19,167.15,2.9919]
[1729541059096,2.9912,167.2,167.16,2.9918]
[1729541059295,1.3849,167.21,167.16,2.9918]
[1729541060893,1.3849,167.21,167.15,2.9919]
[1729541061094,1.3849,167.21,167.13,4.62]
[1729541061496,2.9912,167.2,167.17,2.9916]
[1729541061694,1.3849,167.21,167.17,2.9916]
[1729541062598,2.9913,167.19,167.16,2.9918]
[1729541063497,67.4363,167.25,167.13,4.62]
[1729541063697,4.62,167.24,167.13,4.62]
[1729541064300,4.62,167.24,167.16,2.9918]
[1729541064998,2.9914,167.19,167.16,2.9918]
[1729541065298,4.62,167.24,167.13,4.62]
[1729541065491,4.62,167.24,167.1,1.49664263]
[1729541065697,4.62,167.24,167.1,4.62]
[1729541066393,6.9813,167.23,167.1,7.6129]
[1729541066799,6.9813,167.23,167.1,4.62]
[1729541066995,6.9813,167.23,167.07,4.62]
[1729541067197,6.9813,167.23,167.1,2.9929]
[1729541067395,5.9819,167.22,167.07,4.62]
[1729541067899,2.9917,167.17,167.08,2.9932]
[1729541068205,4.62,167.16,167.08,2.9932]
[1729541068404,2.9928,167.11,167.08,2.9932]
[1729541069697,2.9925,167.13,167.09,2.993]
[1729541069900,2.9925,167.13,167.06,4.62]
[1729541070504,2.9925,167.13,167.09,2.993]
[1729541071104,2.9926,167.12,167.09,2.993]
[1729541071406,7.56325599,167.16,167.06,4.62]
[1729541071607,2.9929,167.11,167.06,4.62]
[1729541071909,2.9929,167.11,167.07,2.9934]
[1729541072111,7.56325599,167.16,167.07,2.9934]
[1729541072808,7.56325599,167.16,167.06,4.62]
[1729541073011,2.9929,167.11,167.08,2.9932]
[1729541074911,2.9934,167.08,167.04,2.994]
[1729541075111,7.56325599,167.16,167.04,4.62]
[1729541075512,2.993,167.1,167.06,2.9936]
[1729541076914,7.56325599,167.16,167.06,2.9936]
[1729541077116,2.9931,167.09,167.05,2.9937]
[1729541079219,1.3678,167.14,167.03,4.62]
[1729541079622,2.9584525,167.16,167.03,4.62]
[1729541079913,2.9924,167.13,167.08,2.9931]
[1729541080105,7.6413155,167.16,167.07,4.62]
[1729541080306,2.9921,167.15,167.1,2.9928]
[1729541080715,4.62,167.17,167.07,4.62]
[1729541080915,1.2851,167.19,167.08,1.3951]
[1729541081109,2.95066946,167.18,167.08,1.3951]
[1729541081309,5.9051,167.19,167.08,1.3951]
[1729541081511,2.992,167.15,167.11,2.9926]
[1729541082923,2.9921,167.15,167.11,2.9926]
[1729541083919,2.9919,167.16,167.11,2.9926]
[1729541084117,5.9051,167.19,167.11,2.9926]
[1729541084310,2.93093346,167.18,167.11,2.9926]
[1729541084619,2.9922,167.15,167.11,2.9926]
[1729541086610,3.00694363,167.18,167.08,1.3951]
[1729541087122,2.9922,167.15,167.12,2.9925]
[1729541087416,3.00694363,167.18,167.12,2.9925]
[1729541087624,5.9051,167.19,167.12,2.9925]
[1729541087918,2.9918,167.16,167.13,2.9923]
[1729541088120,2.9918,167.16,167.11,4.6]
[1729541088324,4.6,167.21,167.11,4.6]
[1729541088726,2.9918,167.17,167.14,2.9921]
[1729541089223,2.9919,167.16,167.13,2.9923]
[1729541089526,4.6,167.21,167.11,4.6]
[1729541089718,3.9963,167.22,167.11,4.6]
[1729541089916,4.6,167.21,167.14,2.992]
[1729541091023,4.6,167.21,167.11,4.6]
[1729541091419,4.6,167.21,167.14,2.9921]